fUSD/lending_fUSD_20260505
["ID","MTS","AMOUNT","RATE_DAILY","PERIOD"]
[421586521,1777932633000,-500.0,0.00014051,2]
[421586503,1777932633000,-150.0,0.00013987,2]
[421586492,1777932633000,-150.0,0.00013862,2]
[421586499,1777932633000,-622.23,0.00013941,2]
[421586549,1777932633000,-500.0,0.00014051,2]
[421586466,1777932633000,-150.0,0.00013488,2]
[421586465,1777932633000,-150.00000001,0.00013488,2]
[421586458,1777932633000,-622.23,0.00013167,2]
[421586464,1777932633000,-150.0,0.00013488,2]
[421586462,1777932633000,-150.0,0.00013488,2]
[421586460,1777932633000,-150.0,0.00013488,2]
[421586459,1777932633000,-150.0,0.00013488,2]
[421586463,1777932633000,-150.0,0.00013488,2]
[421586479,1777932633000,-150.0,0.00013737,2]
[421586483,1777932633000,-695.07,0.00013746,2]
[421586481,1777932633000,-588.94,0.00013746,2]
[421586486,1777932633000,-150.0,0.00013787,2]
[421586470,1777932633000,-150.0,0.00013488,2]
[421586473,1777932633000,-622.23,0.00013554,2]
[421586467,1777932633000,-150.0,0.00013488,2]
[421586475,1777932633000,-1000.0,0.00013592,2]
[421586477,1777932633000,-150.0,0.00013638,2]
[421586488,1777932633000,-150.0,0.00013787,2]
[421586494,1777932633000,-150.0,0.00013862,2]
[421586490,1777932633000,-250.0,0.00013844,2]
[421586505,1777932633000,-500.0,0.00014011,2]
[421586501,1777932633000,-2853.77488762,0.00013987,2]
[421586496,1777932633000,-150.0,0.00013937,2]
[421586553,1777932633000,-500.0,0.00014051,2]
[421586529,1777932633000,-500.0,0.00014051,2]
[421586557,1777932633000,-500.0,0.00014051,2]
[421586600,1777932633000,-150.0,0.00014387,2]
[421586603,1777932633000,-2000.0,0.00014534,2]
[421586606,1777932633000,-150.0,0.00014612,2]
[421586604,1777932633000,-150.0,0.00014537,2]
[421586607,1777932633000,-150.0,0.00014612,2]
[421586609,1777932633000,-150.0,0.00014687,2]
[421586614,1777932633000,-5603.14563329,0.000148,2]
[421586605,1777932633000,-1202.951,0.00014602,2]
[421586608,1777932633000,-150.0,0.00014687,2]
[421586612,1777932633000,-150.0,0.00014737,2]
[421586610,1777932633000,-200.0,0.000147,5]
[421586611,1777932633000,-622.23,0.00014716,2]
[421586616,1777932633000,-150.0,0.00014836,2]
[421586615,1777932633000,-500.0,0.000148,5]
[421586618,1777932633000,-200.0,0.0001488,2]
[421586617,1777932633000,-1852.42,0.00014837,2]
[421586620,1777932633000,-500.0,0.00014899,2]
[421586619,1777932633000,-535.09880514,0.00014899,2]
[421586621,1777932633000,-524.5444949,0.00014899,2]
[421586625,1777932633000,-165060.16368004,0.000149,2]
[421586622,1777932633000,-193.21723269,0.00014899,2]
[421586623,1777932633000,-536.0,0.000149,5]
[421586551,1777932633000,-500.0,0.00014051,2]
[421586595,1777932633000,-150.0,0.00014237,2]
[421586601,1777932633000,-2351.0,0.00014429,2]
[421586613,1777932633000,-444.0,0.00014795,2]
[421586599,1777932633000,-150.0,0.00014387,2]
[421586596,1777932633000,-150.0,0.00014237,2]
[421586559,1777932633000,-500.0,0.00014051,2]
[421586563,1777932633000,-500.0,0.00014051,2]
[421586565,1777932633000,-500.0,0.00014051,2]
[421586555,1777932633000,-644.97619525,0.00014051,2]
[421586567,1777932633000,-500.0,0.00014051,2]
[421586569,1777932633000,-500.0,0.00014051,2]
[421586571,1777932633000,-500.0,0.00014051,2]
[421586578,1777932633000,-500.0,0.00014051,2]
[421586588,1777932633000,-150.0,0.00014087,2]
[421586587,1777932633000,-150.0,0.00014087,2]
[421586561,1777932633000,-500.0,0.00014051,2]
[421586590,1777932633000,-6127.68598875,0.00014228,2]
[421586582,1777932633000,-148636.43224124,0.00014052,2]
[421586624,1777932633000,-150.0,0.000149,2]
[421586584,1777932633000,-36321.27984077,0.00014052,2]
[421586586,1777932633000,-65911.50791799,0.00014052,2]
[421586592,1777932633000,-150.0,0.00014237,2]
[421586602,1777932633000,-150.0,0.00014487,2]
[421586591,1777932633000,-150.0,0.00014237,2]
[421586593,1777932633000,-150.0,0.00014237,2]
[421586594,1777932633000,-150.0,0.00014237,2]
[421586597,1777932633000,-622.23,0.00014328,2]
[421586598,1777932633000,-166.66,0.00014346,2]
[421586589,1777932633000,-314.0,0.00014169,2]
[421586626,1777932634000,-21918.62055404,0.000149,2]
[421586627,1777932634000,-1060.14397087,0.000149,2]
[421586628,1777932634000,-4247.49169896,0.000149,2]
[421586631,1777932634000,-28618.09368205,0.000149,2]
[421586632,1777932634000,-906.78256907,0.000149,2]
[421586630,1777932634000,-900.10494811,0.000149,2]
[421586633,1777932634000,-542.50938,0.000149,2]
[421586634,1777932634000,-1212.58434702,0.000149,2]
[421586635,1777932634000,-1600.33,0.000149,2]
[421586629,1777932634000,-1668.97568377,0.000149,2]
[421586641,1777932638000,-284.14433268,0.000149,2]
[421586647,1777932640000,-414.751446,0.000149,2]
[421586648,1777932640000,-266.0,0.000149,2]
[421586646,1777932640000,-792.0,0.000149,2]
[421586762,1777932643000,-64.53959069,0.000149,2]
[421586761,1777932643000,-128534.41130765,0.000149,2]
[421586790,1777932646000,-450.0,0.000149,2]
[421586917,1777932840000,172.14,7.498e-05,2]
[421586918,1777933276000,-172.14,0.00011248,2]
[421586925,1777933703000,159.54,8.915e-05,2]
[421586923,1777933703000,127.86,6.686e-05,2]
[421586924,1777933703000,31.68,6.686e-05,2]
[421586928,1777933769000,-142.42377518,0.00012258,2]
[421586926,1777933769000,-159.54,0.00011143,2]
[421586927,1777933769000,-500.0,0.00012258,2]
[421586935,1777933832000,-217.18114643,0.00011999,2]
[421586933,1777933832000,-374.5691636,0.00011999,2]
[421586934,1777933832000,-500.0,0.00011999,2]
[421586937,1777933832000,-59343.44234171,0.00012,2]
[421586936,1777933832000,-65861.62544858,0.00012,2]
[421586942,1777933832000,-755.73202309,0.00012,2]
[421586938,1777933832000,-2631.90040632,0.00012,2]
[421586940,1777933832000,-1500.36,0.00012,2]
[421586941,1777933832000,-399.76008351,0.00012,2]
[421586939,1777933832000,-174954.89459049,0.00012,2]
[421586944,1777933833000,-1246.48,0.00012,2]
[421586943,1777933833000,-18760.55878155,0.00012,2]
[421586982,1777933837000,-1170.75638054,0.00012,2]
[421586981,1777933837000,-2257.08759166,0.00012,2]
[421586979,1777933837000,-289.11111019,0.00012,2]
[421586980,1777933837000,-1466.38808259,0.00012,2]
[421586978,1777933837000,-40103.35914167,0.00012,2]
[421586993,1777933839000,-2387.0,0.00012,2]
[421586995,1777933840000,-862.66842386,0.00012,2]
[421586994,1777933840000,-321.26669145,0.00012,2]
[421586997,1777933840000,-989.65348115,0.00012,2]
[421586998,1777933840000,-292.95691049,0.00012,2]
[421586999,1777933840000,-7721.94853633,0.00012,2]
[421586996,1777933840000,-781.06101906,0.00012,2]
[421587041,1777933842000,-184925.47572566,0.00012,2]
[421587031,1777933842000,-4307.74967549,0.00012,2]
[421587032,1777933842000,-20676.70848332,0.00012,2]
[421587034,1777933842000,-1030.1308482,0.00012,2]
[421587033,1777933842000,-764.86434579,0.00012,2]
[421587035,1777933842000,-1772.92596407,0.00012,2]
[421587037,1777933842000,-563.7724548,0.00012,2]
[421587036,1777933842000,-997.41786555,0.00012,2]
[421587038,1777933842000,-3101.36321665,0.00012,2]
[421587039,1777933842000,-2343.68669856,0.00012,2]
[421587049,1777933842000,-1200.0,0.00013487,2]
[421587047,1777933842000,-251.41,0.00013377,2]
[421587054,1777933842000,-150.0,0.00013488,2]
[421587046,1777933842000,-159.54,0.00013372,2]
[421587043,1777933842000,-440.188476,0.00013182,2]
[421587044,1777933842000,-809.32,0.00013365,2]
[421587048,1777933842000,-318.07216562,0.00013484,2]
[421587050,1777933842000,-1200.0,0.00013487,2]
[421587045,1777933842000,-150.0,0.00013367,2]
[421587040,1777933842000,-134489.55435709,0.00012,2]
[421587052,1777933842000,-150.0,0.00013488,2]
[421587053,1777933842000,-150.87380379,0.00013488,2]
[421587051,1777933842000,-150.0,0.00013488,2]
[421587042,1777933842000,-107.57622482,0.00012258,2]
[421587081,1777933843000,-500.0,0.00013699,2]
[421587079,1777933843000,-500.0,0.00013699,2]
[421587080,1777933843000,-500.0,0.00013699,2]
[421587075,1777933843000,-500.0,0.00013699,2]
[421587077,1777933843000,-500.0,0.00013699,2]
[421587076,1777933843000,-500.0,0.00013699,2]
[421587082,1777933843000,-500.0,0.00013699,2]
[421587078,1777933843000,-500.0,0.00013699,2]
[421587085,1777933843000,-500.0,0.00013699,2]
[421587087,1777933843000,-500.0,0.00013699,2]
[421587084,1777933843000,-500.0,0.00013699,2]
[421587096,1777933843000,-166.66,0.00013973,2]
[421587091,1777933843000,-809.32,0.00013699,2]
[421587086,1777933843000,-500.0,0.00013699,2]
[421587090,1777933843000,-431.74792181,0.00013699,2]
[421587088,1777933843000,-500.0,0.00013699,2]
[421587094,1777933843000,-24449.0,0.00013895,2]
[421587093,1777933843000,-166.66,0.00013836,2]
[421587098,1777933843000,-150.0,0.00013987,2]
[421587083,1777933843000,-500.0,0.00013699,2]
[421587092,1777933843000,-668.49,0.00013822,2]
[421587072,1777933843000,-500.0,0.00013699,2]
[421587056,1777933843000,-157.56180726,0.00013488,2]
[421587059,1777933843000,-1246.48,0.00013609,2]
[421587055,1777933843000,-150.0,0.00013488,2]
[421587057,1777933843000,-150.0,0.00013488,2]
[421587058,1777933843000,-297.6720884,0.00013488,2]
[421587061,1777933843000,-200.0,0.00013699,2]
[421587060,1777933843000,-250.0,0.00013609,2]
[421587063,1777933843000,-500.0,0.00013699,2]
[421587074,1777933843000,-500.0,0.00013699,2]
[421587062,1777933843000,-166.66,0.00013699,2]
[421587064,1777933843000,-500.0,0.00013699,2]
[421587067,1777933843000,-500.0,0.00013699,2]
[421587066,1777933843000,-500.0,0.00013699,2]
[421587069,1777933843000,-500.0,0.00013699,2]
[421587068,1777933843000,-500.0,0.00013699,2]
[421587071,1777933843000,-500.0,0.00013699,2]
[421587070,1777933843000,-500.0,0.00013699,2]
[421587073,1777933843000,-500.0,0.00013699,2]
[421587065,1777933843000,-500.0,0.00013699,2]
[421587100,1777933843000,-809.32,0.00014033,2]
[421587089,1777933843000,-500.0,0.00013699,2]
[421587099,1777933843000,-250.0,0.00014,2]
[421587121,1777933843000,-500.0,0.00014525,2]
[421587126,1777933843000,-500.0,0.00014525,2]
[421587133,1777933843000,-500.0,0.00014525,2]
[421587130,1777933843000,-500.0,0.00014525,2]
[421587131,1777933843000,-500.0,0.00014525,2]
[421587134,1777933843000,-500.0,0.00014525,2]
[421587129,1777933843000,-500.0,0.00014525,2]
[421587132,1777933843000,-501.76596491,0.00014525,2]
[421587122,1777933843000,-315.08872367,0.00014525,2]
[421587127,1777933843000,-500.0,0.00014525,2]
[421587128,1777933843000,-500.0,0.00014525,2]
[421587137,1777933843000,-1700.0,0.000146,5]
[421587136,1777933843000,-171.08153628,0.00014525,2]
[421587138,1777933843000,-990.81648669,0.00014634,2]
[421587139,1777933843000,-3179.44286377,0.00014669,2]
[421587140,1777933843000,-2879.63934,0.00014669,2]
[421587141,1777933843000,-1368.44455086,0.00014695,2]
[421587110,1777933843000,-150.0,0.00014403,2]
[421587135,1777933843000,-500.0,0.00014525,2]
[421587119,1777933843000,-500.0,0.00014525,2]
[421587125,1777933843000,-500.0,0.00014525,2]
[421587115,1777933843000,-642.49,0.00014493,2]
[421587142,1777933843000,-743.33980056,0.00014695,2]
[421587111,1777933843000,-651.03615738,0.00014425,2]
[421587101,1777933843000,-2000.0,0.00014102,2]
[421587107,1777933843000,-809.32,0.00014367,2]
[421587102,1777933843000,-962.36,0.00014102,2]
[421587104,1777933843000,-3629.85846773,0.00014162,2]
[421587120,1777933843000,-500.0,0.00014525,2]
[421587105,1777933843000,-53521.23,0.00014226,2]
[421587106,1777933843000,-166.66,0.00014247,2]
[421587108,1777933843000,-166.66,0.00014384,2]
[421587103,1777933843000,-166.66,0.0001411,2]
[421587113,1777933843000,-4535.13,0.00014465,2]
[421587109,1777933843000,-500.0,0.000144,5]
[421587117,1777933843000,-500.0,0.00014525,2]
[421587124,1777933843000,-500.0,0.00014525,2]
[421587112,1777933843000,-1815.9802919,0.0001445,2]
[421587114,1777933843000,-150.0,0.00014487,2]
[421587116,1777933843000,-1100.0,0.000145,5]
[421587123,1777933843000,-184.91127633,0.00014525,2]
[421587118,1777933843000,-500.0,0.00014525,2]
[421587149,1777933845000,-1692.13634436,0.000147,2]
[421587145,1777933845000,-154.04704704,0.00014699,2]
[421587144,1777933845000,-3947.29785226,0.00014695,2]
[421587146,1777933845000,-603.22359848,0.000147,2]
[421587147,1777933845000,-1401.96252505,0.000147,2]
[421587155,1777933845000,-1976.8207878,0.00014746,2]
[421587150,1777933845000,-2200.0,0.000147,5]
[421587152,1777933845000,-809.32,0.00014701,2]
[421587154,1777933845000,-251.16435265,0.00014724,2]
[421587159,1777933845000,-95.65825614,0.00014746,2]
[421587151,1777933845000,-483.12279745,0.000147,2]
[421587148,1777933845000,-2796.39998,0.000147,2]
[421587156,1777933845000,-626.20540277,0.00014746,2]
[421587157,1777933845000,-929.79883095,0.00014746,2]
[421587161,1777933845000,-845.0235,0.0001477,2]
[421587158,1777933845000,-2430.59892602,0.00014746,2]
[421587162,1777933845000,-1614.468702,0.0001477,2]
[421587160,1777933845000,-1309.54369386,0.0001477,2]
[421587153,1777933845000,-6059.08220368,0.0001472,2]
[421587163,1777933846000,-3478.7,0.0001477,2]
[421587165,1777933864000,108.78,0.000107,2]
[421587167,1777933864000,33434.49527356,0.000107,2]
[421587166,1777933864000,400.0,0.000107,2]
[421587180,1777934885000,165.15,6.674e-05,2]
[421587181,1777934998000,-4592.0,0.00011999,2]
[421587193,1777935031000,-203.30786408,0.00013199,2]
[421587200,1777935031000,-17.56088579,0.00013348,2]
[421587197,1777935031000,-250.0,0.00013199,2]
[421587202,1777935031000,-150.0,0.00013488,2]
[421587195,1777935031000,-443.74675824,0.00013199,2]
[421587196,1777935031000,-56.25324176,0.00013199,2]
[421587194,1777935031000,-1958.19798372,0.00013199,2]
[421587191,1777935031000,-250.0,0.00013199,2]
[421587184,1777935031000,-716.88532856,0.00011999,2]
[421587189,1777935031000,-300.0,0.00013197,2]
[421587190,1777935031000,-1680.0,0.00013198,2]
[421587186,1777935031000,-2244.57027267,0.00011999,2]
[421587188,1777935031000,-189.62280216,0.00013099,2]
[421587187,1777935031000,-644.88046547,0.00012598,2]
[421587183,1777935031000,-26.08351096,0.00011999,2]
[421587185,1777935031000,-478.50807902,0.00011999,2]
[421587182,1777935031000,-1200.0,0.00011998,2]
[421587199,1777935031000,-147.58911421,0.00013348,2]
[421587192,1777935031000,-1970.856746,0.00013199,2]
[421587198,1777935031000,-150.0,0.00013307,2]
[421587204,1777935031000,-150.0,0.00013488,2]
[421587206,1777935031000,-4483.95,0.0001354,2]
[421587201,1777935031000,-265.8524428,0.00013488,2]
[421587221,1777935031000,-166.66,0.00014247,2]
[421587222,1777935031000,-4000.0,0.00014293,2]
[421587218,1777935031000,-4000.0,0.00013953,2]
[421587211,1777935031000,-166.66,0.00013699,2]
[421587213,1777935031000,-334.24,0.00013771,2]
[421587219,1777935031000,-166.66,0.00013973,2]
[421587217,1777935031000,-512.0,0.00013906,2]
[421587216,1777935031000,-166.66,0.00013836,2]
[421587215,1777935031000,-2000.0,0.00013786,2]
[421587220,1777935031000,-166.66,0.0001411,2]
[421587212,1777935031000,-166.7,0.00013725,2]
[421587210,1777935031000,-2212.0,0.00013699,2]
[421587208,1777935031000,-500.0,0.00013661,2]
[421587209,1777935031000,-150.0,0.00013698,2]
[421587207,1777935031000,-4000.0,0.00013613,2]
[421587205,1777935031000,-238.43,0.0001354,2]
[421587214,1777935031000,-200.0,0.00013772,2]
[421587203,1777935031000,-254.74850454,0.00013488,2]
[421587267,1777935032000,-375.16863483,0.00014669,2]
[421587263,1777935032000,-500.0,0.00014669,2]
[421587264,1777935032000,-500.0,0.00014669,2]
[421587265,1777935032000,-500.0,0.00014669,2]
[421587262,1777935032000,-500.0,0.00014669,2]
[421587258,1777935032000,-500.0,0.00014669,2]
[421587261,1777935032000,-500.0,0.00014669,2]
[421587259,1777935032000,-500.0,0.00014669,2]
[421587257,1777935032000,-500.0,0.00014669,2]
[421587255,1777935032000,-500.0,0.00014669,2]
[421587268,1777935032000,-500.0,0.00014669,2]
[421587254,1777935032000,-500.0,0.00014669,2]
[421587266,1777935032000,-124.83136517,0.00014669,2]
[421587278,1777935032000,-500.0,0.00014669,2]
[421587273,1777935032000,-500.0,0.00014669,2]
[421587269,1777935032000,-500.0,0.00014669,2]
[421587270,1777935032000,-500.0,0.00014669,2]
[421587272,1777935032000,-500.0,0.00014669,2]
[421587274,1777935032000,-500.0,0.00014669,2]
[421587276,1777935032000,-500.0,0.00014669,2]
[421587277,1777935032000,-500.0,0.00014669,2]
[421587275,1777935032000,-500.0,0.00014669,2]
[421587256,1777935032000,-500.0,0.00014669,2]
[421587280,1777935032000,-500.0,0.00014669,2]
[421587281,1777935032000,-500.0,0.00014669,2]
[421587279,1777935032000,-500.0,0.00014669,2]
[421587282,1777935032000,-500.0,0.00014669,2]
[421587284,1777935032000,-500.0,0.00014669,2]
[421587271,1777935032000,-500.0,0.00014669,2]
[421587260,1777935032000,-500.0,0.00014669,2]
[421587245,1777935032000,-4346.64478578,0.00014588,2]
[421587252,1777935032000,-500.0,0.00014669,2]
[421587223,1777935032000,-166.66,0.00014384,2]
[421587225,1777935032000,-500.0,0.00014395,2]
[421587224,1777935032000,-500.0,0.00014395,2]
[421587226,1777935032000,-159.84180587,0.00014395,2]
[421587228,1777935032000,-22.34470967,0.00014395,2]
[421587227,1777935032000,-317.81348446,0.00014395,2]
[421587233,1777935032000,-294.8453287,0.00014395,2]
[421587229,1777935032000,-217.17691746,0.00014395,2]
[421587287,1777935032000,-500.0,0.00014669,2]
[421587231,1777935032000,-150.0,0.00014395,2]
[421587230,1777935032000,-150.0,0.00014395,2]
[421587232,1777935032000,-150.0,0.00014395,2]
[421587235,1777935032000,-3556.0832349,0.00014425,2]
[421587234,1777935032000,-200.0,0.000144,5]
[421587236,1777935032000,-3555.2661016,0.00014425,2]
[421587238,1777935032000,-500.0,0.000145,5]
[421587237,1777935032000,-2360.7192211,0.00014425,2]
[421587240,1777935032000,-2351.0,0.00014517,2]
[421587239,1777935032000,-500.0,0.000145,5]
[421587241,1777935032000,-189.62280216,0.00014569,2]
[421587243,1777935032000,-517.04879868,0.00014572,2]
[421587242,1777935032000,-233.98723583,0.0001457,2]
[421587244,1777935032000,-769.888,0.00014572,2]
[421587247,1777935032000,-4346.64478577,0.00014623,2]
[421587246,1777935032000,-800.0,0.000146,5]
[421587248,1777935032000,-4000.0,0.00014634,2]
[421587250,1777935032000,-5762.26302829,0.00014661,2]
[421587251,1777935032000,-150.0,0.00014669,2]
[421587249,1777935032000,-4346.64478577,0.00014657,2]
[421587253,1777935032000,-500.0,0.00014669,2]
[421587286,1777935032000,-500.0,0.00014669,2]
[421587342,1777935032000,-668.86785857,0.00014669,2]
[421587285,1777935032000,-500.0,0.00014669,2]
[421587318,1777935032000,-668.86785857,0.00014669,2]
[421587321,1777935032000,-668.86785857,0.00014669,2]
[421587319,1777935032000,-668.86785857,0.00014669,2]
[421587325,1777935032000,-668.86785857,0.00014669,2]
[421587324,1777935032000,-668.86785857,0.00014669,2]
[421587326,1777935032000,-668.86785857,0.00014669,2]
[421587327,1777935032000,-668.86785857,0.00014669,2]
[421587330,1777935032000,-668.86785857,0.00014669,2]
[421587333,1777935032000,-668.86785857,0.00014669,2]
[421587336,1777935032000,-668.86785857,0.00014669,2]
[421587335,1777935032000,-668.86785857,0.00014669,2]
[421587328,1777935032000,-668.86785857,0.00014669,2]
[421587331,1777935032000,-668.86785857,0.00014669,2]
[421587316,1777935032000,-668.86785857,0.00014669,2]
[421587329,1777935032000,-668.86785857,0.00014669,2]
[421587334,1777935032000,-668.86785857,0.00014669,2]
[421587338,1777935032000,-668.86785857,0.00014669,2]
[421587337,1777935032000,-668.86785857,0.00014669,2]
[421587340,1777935032000,-668.86785857,0.00014669,2]
[421587344,1777935032000,-668.86785857,0.00014669,2]
[421587345,1777935032000,-668.86785857,0.00014669,2]
[421587347,1777935032000,-668.86785857,0.00014669,2]
[421587341,1777935032000,-668.86785857,0.00014669,2]
[421587339,1777935032000,-668.86785857,0.00014669,2]
[421587343,1777935032000,-668.86785857,0.00014669,2]
[421587348,1777935032000,-668.86785857,0.00014669,2]
[421587346,1777935032000,-668.86785857,0.00014669,2]
[421587283,1777935032000,-500.0,0.00014669,2]
[421587332,1777935032000,-668.86785857,0.00014669,2]
[421587322,1777935032000,-668.86785857,0.00014669,2]
[421587349,1777935032000,-668.86785857,0.00014669,2]
[421587317,1777935032000,-668.86785857,0.00014669,2]
[421587288,1777935032000,-333.29023851,0.00014669,2]
[421587295,1777935032000,-500.0,0.00014669,2]
[421587292,1777935032000,-500.0,0.00014669,2]
[421587289,1777935032000,-500.0,0.00014669,2]
[421587293,1777935032000,-228.51290379,0.00014669,2]
[421587291,1777935032000,-500.0,0.00014669,2]
[421587296,1777935032000,-500.0,0.00014669,2]
[421587290,1777935032000,-500.0,0.00014669,2]
[421587320,1777935032000,-668.86785857,0.00014669,2]
[421587299,1777935032000,-500.0,0.00014669,2]
[421587298,1777935032000,-500.0,0.00014669,2]
[421587297,1777935032000,-500.0,0.00014669,2]
[421587300,1777935032000,-500.0,0.00014669,2]
[421587302,1777935032000,-500.0,0.00014669,2]
[421587294,1777935032000,-500.0,0.00014669,2]
[421587303,1777935032000,-500.0,0.00014669,2]
[421587301,1777935032000,-500.0,0.00014669,2]
[421587315,1777935032000,-668.86785857,0.00014669,2]
[421587323,1777935032000,-668.86785857,0.00014669,2]
[421587314,1777935032000,-252.89091526,0.00014669,2]
[421587311,1777935032000,-500.0,0.00014669,2]
[421587312,1777935032000,-500.0,0.00014669,2]
[421587310,1777935032000,-195.90419369,0.00014669,2]
[421587306,1777935032000,-500.0,0.00014669,2]
[421587308,1777935032000,-500.0,0.00014669,2]
[421587305,1777935032000,-600.0,0.00014669,2]
[421587307,1777935032000,-500.0,0.00014669,2]
[421587304,1777935032000,-500.0,0.00014669,2]
[421587309,1777935032000,-500.0,0.00014669,2]
[421587313,1777935032000,-500.0,0.00014669,2]
[421587389,1777935033000,-662.17917999,0.00014669,2]
[421587391,1777935033000,-662.17917999,0.00014669,2]
[421587395,1777935033000,-662.17917999,0.00014669,2]
[421587390,1777935033000,-662.17917999,0.00014669,2]
[421587397,1777935033000,-662.17917999,0.00014669,2]
[421587385,1777935033000,-662.17917999,0.00014669,2]
[421587387,1777935033000,-662.17917999,0.00014669,2]
[421587386,1777935033000,-662.17917999,0.00014669,2]
[421587383,1777935033000,-662.17917999,0.00014669,2]
[421587384,1777935033000,-662.17917999,0.00014669,2]
[421587382,1777935033000,-662.17917999,0.00014669,2]
[421587388,1777935033000,-662.17917999,0.00014669,2]
[421587393,1777935033000,-662.17917999,0.00014669,2]
[421587408,1777935033000,-500.0,0.0001467,2]
[421587396,1777935033000,-662.17917999,0.00014669,2]
[421587392,1777935033000,-662.17917999,0.00014669,2]
[421587398,1777935033000,-662.17917999,0.00014669,2]
[421587400,1777935033000,-662.17917999,0.00014669,2]
[421587399,1777935033000,-662.17917999,0.00014669,2]
[421587401,1777935033000,-662.17917999,0.00014669,2]
[421587402,1777935033000,-662.17917999,0.00014669,2]
[421587405,1777935033000,-178.14968577,0.00014669,2]
[421587407,1777935033000,-330.28911157,0.0001467,2]
[421587406,1777935033000,-500.0,0.0001467,2]
[421587403,1777935033000,-502.0268025,0.00014669,2]
[421587404,1777935033000,-150.0,0.00014669,2]
[421587381,1777935033000,-662.17917999,0.00014669,2]
[421587394,1777935033000,-662.17917999,0.00014669,2]
[421587380,1777935033000,-662.17917999,0.00014669,2]
[421587372,1777935033000,-668.86785857,0.00014669,2]
[421587377,1777935033000,-662.17917999,0.00014669,2]
[421587410,1777935033000,-961631.2972,0.0001467,2]
[421587350,1777935033000,-668.86785857,0.00014669,2]
[421587352,1777935033000,-668.86785857,0.00014669,2]
[421587360,1777935033000,-668.86785857,0.00014669,2]
[421587354,1777935033000,-668.86785857,0.00014669,2]
[421587357,1777935033000,-668.86785857,0.00014669,2]
[421587351,1777935033000,-668.86785857,0.00014669,2]
[421587355,1777935033000,-668.86785857,0.00014669,2]
[421587359,1777935033000,-668.86785857,0.00014669,2]
[421587353,1777935033000,-668.86785857,0.00014669,2]
[421587356,1777935033000,-668.86785857,0.00014669,2]
[421587358,1777935033000,-668.86785857,0.00014669,2]
[421587362,1777935033000,-668.86785857,0.00014669,2]
[421587379,1777935033000,-662.17917999,0.00014669,2]
[421587361,1777935033000,-668.86785857,0.00014669,2]
[421587363,1777935033000,-668.86785857,0.00014669,2]
[421587365,1777935033000,-668.86785857,0.00014669,2]
[421587368,1777935033000,-668.86785857,0.00014669,2]
[421587369,1777935033000,-668.86785857,0.00014669,2]
[421587370,1777935033000,-668.86785857,0.00014669,2]
[421587366,1777935033000,-668.86785857,0.00014669,2]
[421587367,1777935033000,-668.86785857,0.00014669,2]
[421587371,1777935033000,-668.86785857,0.00014669,2]
[421587374,1777935033000,-662.17917999,0.00014669,2]
[421587373,1777935033000,-662.17917999,0.00014669,2]
[421587376,1777935033000,-662.17917999,0.00014669,2]
[421587375,1777935033000,-662.17917999,0.00014669,2]
[421587378,1777935033000,-662.17917999,0.00014669,2]
[421587364,1777935033000,-668.86785857,0.00014669,2]
[421587409,1777935033000,-212.0522951,0.0001467,2]
[421587417,1777935033000,-401.949312,0.000147,2]
[421587412,1777935033000,-4346.64478577,0.00014692,2]
[421587447,1777935033000,-5762.26302823,0.00014873,2]
[421587444,1777935033000,-5762.26302823,0.00014847,2]